Cogmind - Beta 13 @@@ ROGUE MODE // 2024.03.31 @ 21:36:30 Player: R.A.T Result: Destroyed by G-47 Trooper with Particle Gun Performance ------------- Evolutions (1) 500 Regions Visited (2) 400 Robots Destroyed (44) 220 Value Destroyed (1064) 1064 Prototype IDs (4) 80 Alien Tech Used (0) 0 Bonus (0) 0 TOTAL SCORE: 2264 Bonus ------- None Cogmind --------- Core Integrity 0/400 Matter 280/300 Energy 70/100 System Corruption 1% Temperature Hot (243) Movement Treading (225) Ox1 Location -9/Materials Parts ------- > --- POWER (2) -------- (None) > --- PROPULSION (2) --- Advanced Treads Advanced Treads > --- UTILITY (3) ------ High-capacity Storage Unit Improved Targeting Computer Hacking Suite > --- WEAPON (2) ------- Heavy EM Pulse Gun Particle Cannon > --- INVENTORY (20) --- Advanced Treads Advanced Treads Weight Redist. System Shield Generator Improved EM Shotgun Improved EM Shotgun EM Pulse Cannon EM Pulse Cannon Datajack Peak State ------------ > --- POWER ------------ Light Ion Engine Improved Ion Engine > --- PROPULSION ------- Advanced Treads Advanced Treads > --- UTILITY ---------- High-capacity Storage Unit Improved Targeting Computer Hacking Suite > --- WEAPON ----------- Particle Cannon Particle Cannon > --- INVENTORY -------- Light Ion Engine Advanced Treads Advanced Treads Weight Redist. System Improved EM Shotgun Improved EM Shotgun EM Pulse Cannon EM Pulse Cannon Datajack [Rating: 21] Favorites ----------- Power Light Ion Engine Engine Light Ion Engine Propulsion Aluminum Leg Treads Advanced Treads Leg Aluminum Leg Wheel Wheel Utility High-capacity Storage Unit Device Heat Sink Storage High-capacity Storage Unit Processor Improved Targeting Computer Hackware Hacking Suite Protection Light Armor Plating Weapon Medium Laser Energy Gun Medium Laser Energy Cannon Particle Cannon Build | -11 -10 -9 ------- Run | Yrd Mat Mat Slots Evolved 2 | . . 2 Power 1 | . . 1 Propulsion . | . . . Utility 1 | . . 1 Weapon . | . . . Parts Attached 37 | 5 10 22 Power 8 | 1 1 6 Engine 8 | 1 1 6 Core . | . . . Reactor . | . . . Propulsion 12 | 2 3 7 Treads 3 | . . 3 Leg 7 | 2 3 2 Wheel 2 | . . 2 Hover . | . . . Flight . | . . . Utility 6 | . 3 3 Device 1 | . . 1 Storage 1 | . 1 . Processor 2 | . 1 1 Hackware 1 | . . 1 Protection 1 | . 1 . Artifact . | . . . Weapon 11 | 2 3 6 Energy Gun 8 | 2 3 3 Energy Cannon 3 | . . 3 Ballistic Gun . | . . . Ballistic Cannon . | . . . Launcher . | . . . Special Weapon . | . . . Impact Weapon . | . . . Slashing Weapon . | . . . Piercing Weapon . | . . . Special Melee Weapon . | . . . Unidentified Prototypes . | . . . Parts Lost 12 | . 2 10 Power 5 | . 1 4 Propulsion 1 | . . 1 Utility 1 | . . 1 Weapon 5 | . 1 4 Highest Loss Streak 5 | . 2 5 To Critical Strikes . | . . . Average Slot Usage (%) 89 | . 89 89 Engine 13 | . 8 17 Treads 6 | . . 12 Leg 13 | . 28 2 Wheel 3 | . . 6 Storage 11 | . 12 11 Processor 8 | . 9 7 Hackware 5 | . . 10 Protection 2 | . 2 1 Energy Gun 16 | . 27 7 Energy Cannon 6 | . . 12 Naked Turns . | . . . Heaviest Build 58 | 7 49 58 Greatest Support 44 | 20 20 44 Greatest Overweight (x) 4 | . 2 4 Average Overweight (x) 1 | . 1 1 Largest Inventory Capacity 20 | 5 20 20 Average Capacity 18 | 5 18 20 Most Carried 12 | 4 7 12 Average Carried 5 | 2 4 7 Final Capacity 20 | 5 20 20 Final Carried 9 | 4 3 9 Class Distribution -------------------- 93% | Mutant 6% | Scavenger-Mutant Dominant Class ---------------- Mutant | -10/Materials Mutant | -9/Materials Resources | -11 -10 -9 ----------- Run | Yrd Mat Mat Matter Collected 601 | 250 85 266 Remotely . | . . . Salvage Created 1417 | 104 309 1004 Parts 87 | 8 22 57 Haulers Intercepted . | . . . Recyclers Shooed 1 | . 1 . Parts Field Recycled . | . . . Retrieved Matter . | . . . Parts Self-Destructed . | . . . Prevented . | . . . Kills | -11 -10 -9 ------- Run | Yrd Mat Mat Combat Hostiles Destroyed 34 | 1 10 23 Guns 19 | 1 10 8 Cannons 13 | . . 13 Classes Destroyed 8 | 3 2 3 Worker 2 | 1 . 1 Tunneler 2 | 2 . . Recycler 1 | . . 1 Operator 1 | . . 1 Watcher 4 | . 1 3 Swarmer 12 | . 5 7 Grunt 17 | 1 5 11 Sentry 5 | . . 5 Best Kill Streak 4 | 3 4 4 Combat Bots Only 4 | 1 4 4 Max Kills in Single Turn 2 | 1 1 2 Gunslinging . | . . . Exploded . | . . . Melee . | . . . Uniques/NPCs Destroyed . | . . . Combat | -11 -10 -9 -------- Run | Yrd Mat Mat Hostile Shots Fired 257 | 2 75 180 Missed 73 | . 27 46 Damage Taken 2186 | 22 461 1703 Core 490 | 11 73 406 Absorbed by Shields . | . . . Regen/Repaired (Parts) 249 | . 21 228 Core Remaining (%) 80 | 95 66 . Volleys Fired 119 | 8 40 71 Largest 2 | 2 2 2 Hottest 136 | 100 100 136 Shots Fired 213 | 15 77 121 Gun 152 | 15 77 60 Cannon 61 | . . 61 Launcher . | . . . Special . | . . . Kinetic . | . . . Thermal 207 | 15 77 115 Explosive . | . . . Electromagnetic 6 | . . 6 Robot Hit Streak 6 | 3 4 6 Robot Miss Streak 6 | 2 6 4 Penetration Max . | . . . Secondary Targets 1 | . 1 . Max Gunslinging Chain 1 | . 1 . Shots Hit Robots 112 | 9 37 66 Core Hits 53 | 5 18 30 Critical Kills 1 | . . 1 Critical Parts Destroyed . | . . . Critical Strikes 6 | 1 2 3 Burn 5 | 1 2 2 Meltdown 1 | . . 1 Melee Attacks . | . . . Impact . | . . . Slashing . | . . . Piercing . | . . . Sneak Attacks . | . . . Combat Hostiles . | . . . Follow-up Attacks . | . . . Damage Inflicted 1804 | 111 459 1234 Guns 1084 | 111 459 514 Cannons 720 | . . 720 Explosions . | . . . Melee . | . . . Ramming . | . . . Kinetic . | . . . Thermal 1757 | 111 459 1187 Explosive . | . . . Electromagnetic 47 | . . 47 Impact . | . . . Slashing . | . . . Piercing . | . . . Highest Corruption 3 | . 3 1 Average Corruption 1 | . 2 1 Corruption Purged . | . . . Corruption Blocked . | . . . Effects 6 | . 4 2 Message Errors 1 | . . 1 Matter Fused 2 | . 2 . Heat Flow Errors 3 | . 2 1 Overload Shots . | . . . Overflow Damage 10 | . . 10 Projectiles 10 | . . 10 Explosions . | . . . Melee . | . . . Knockbacks . | . . . Impact . | . . . Kinetic . | . . . Secondary . | . . . Self-Inflicted Damage . | . . . Shots . | . . . Rammed . | . . . Targets Rammed . | . . . Kicked . | . . . Crushed . | . . . Highest Temperature 487 | 256 361 487 Average Temperature 135 | 126 108 151 Received Heat Transfer 891 | 12 120 759 Effects 13 | 1 4 8 Shutdowns 2 | . 1 1 Energy Bleed 1 | . . 1 Interference 8 | 1 3 4 Matter Decay 1 | . . 1 Damage (minor) 1 | . . 1 Siege Activations . | . . . Robots Corrupted . | . . . Combat Hostiles . | . . . Parts Fried . | . . . Impact Corruptions . | . . . Robots Melted 2 | . . 2 Combat Hostiles 2 | . . 2 Parts Melted 11 | 1 2 8 Heat Transferred 4468 | 407 1493 2568 Parts Sabotaged . | . . . Parts Stolen . | . . . Parts Stripped . | . . . Power Chain Reactions . | . . . Alert | -11 -10 -9 ------- Run | Yrd Mat Mat Peak Influence 242 | 35 199 242 Initial 22 | . 22 . Average 112 | 8 66 159 Maximum Alert Level 1 | . . 1 Low Security (%) 83 | 100 100 69 Level 1 16 | . . 30 Level 2 . | . . . Level 3 . | . . . Level 4 . | . . . Level 5 . | . . . High Security . | . . . Max Security . | . . . Squads Dispatched 3 | . 1 2 Investigation 2 | . . 2 Extermination . | . . . Reinforcement 1 | . 1 . Assault . | . . . Garrison . | . . . Intercept . | . . . Searches Triggered . | . . . Construction Impeded . | . . . Haulers Reinforced . | . . . Active Scanning Responses . | . . . Cargo Convoy Interrupts . | . . . Stealth | -11 -10 -9 --------- Run | Yrd Mat Mat Distress Signals 5 | . 1 4 Communications Jammed . | . . . Distress Signals . | . . . Times Spotted 52 | 1 19 32 Peak Tracking Total 5 | 1 5 4 Tactical Retreats . | . . . Traps | -11 -10 -9 ------- Run | Yrd Mat Mat Traps Triggered 4 | . 3 1 Indirectly . | . . . Trap Hack Attempts . | . . . Triggered . | . . . Disarmed . | . . . Reprogrammed . | . . . Reused . | . . . Traps Extracted . | . . . Installed . | . . . Triggered . | . . . Machines | -11 -10 -9 ---------- Run | Yrd Mat Mat Machines Disabled . | . . . Max in Single Turn . | . . . Machines Repaired . | . . . Machines Dismantled . | . . . Machines Sabotaged . | . . . Overloaded Fab Kills . | . . . Hacking | -11 -10 -9 --------- Run | Yrd Mat Mat Machines Accessed 11 | . 4 7 Terminals 8 | . 3 5 Fabricators . | . . . Repair Stations 2 | . 1 1 Recycling Units 1 | . . 1 Scanalyzers . | . . . Garrison Access . | . . . Total Hacks 34 | . 10 24 Successful 20 | . 6 14 Failed 14 | . 4 10 Catastrophic 1 | . . 1 Database Lockouts . | . . . Manual 4 | . 4 . Terminals 23 | . 8 15 Fabricators . | . . . Repair Stations 7 | . 2 5 Recycling Units 4 | . . 4 Scanalyzers . | . . . Garrison Access . | . . . Terminal Hacks 12 | . 4 8 Record 1 | . . 1 Prototype ID Bank 4 | . 1 3 Branch Access Points 1 | . . 1 Terminal Index 2 | . 1 1 Unreport Threat 1 | . 1 . Dispatch Records 1 | . 1 . Recall Investigation 1 | . . 1 Registered Prototypes 1 | . . 1 Fabricator Hacks . | . . . Repair Station Hacks 6 | . 2 4 Scan Component 3 | . 1 2 Repair 3 | . 1 2 Recycling Unit Hacks 2 | . . 2 Recycle Component 1 | . . 1 Process 1 | . . 1 Scanalyzer . | . . . Garrison Access Hacks . | . . . Unauthorized Hacks . | . . . Terminals . | . . . Fabricators . | . . . Repair Stations . | . . . Recycling Units . | . . . Scanalyzers . | . . . Garrison Access . | . . . Data Cores Recovered 1 | . . 1 Used 1 | . . 1 Hacking Detections 7 | . 2 5 Full Trace Events 5 | . 1 4 Feedback Events . | . . . Feedback Blocked . | . . . Robot Schematics Acquired . | . . . Robots Built . | . . . Authchips . | . . . Time . | . . . Total Robot Build Rating . | . . . Part Schematics Acquired . | . . . Parts Built . | . . . Authchips . | . . . Time . | . . . Total Part Build Rating . | . . . Parts Repaired 3 | . 1 2 Time 96 | . 26 70 Parts Recycled 1 | . . 1 Recycled Matter 76 | . . 76 Retrieved Matter . | . . . Retrieved Components . | . . . Parts Scanalyzed . | . . . Part Schematics Acquired . | . . . Parts Damaged . | . . . Bothacking | -11 -10 -9 ------------ Run | Yrd Mat Mat Used RIF Installer . | . . . Robots Hacked . | . . . Non-combat . | . . . Combat . | . . . Robot Hacks Applied . | . . . Relay Couplers Released . | . . . Fabnet Peak Effective % . | . . . Robots Rewired . | . . . Allies Hacked . | . . . Hacks Repelled . | . . . Allies | -11 -10 -9 -------- Run | Yrd Mat Mat Total Allies . | . . . Largest Group . | . . . Highest-Rated Group . | . . . Highest-Rated Ally . | . . . Total Orders . | . . . Ally Attacks . | . . . Total Damage . | . . . Kills . | . . . Allies Corrupted . | . . . Allies Melted . | . . . Intel | -11 -10 -9 ------- Run | Yrd Mat Mat Robot Analysis Total . | . . . Derelict Logs Recovered . | . . . Drone Launches . | . . . Drone Recoveries . | . . . Exploration | -11 -10 -9 ------------- Run | Yrd Mat Mat Turns Passed 2713 | 124 1161 1428 Spaces Moved 1181 | 85 451 645 Core 20 | 20 . . Treads 321 | . . 321 Legs 570 | 65 451 54 Wheels 270 | . . 270 Hover . | . . . Flight . | . . . Fastest Speed 50 | 50 120 110 Average Speed 194 | 103 227 183 Slowest Speed 400 | 120 260 400 Overloaded Moves . | . . . Propulsion Burnouts . | . . . Robots Hopped . | . . . Cave-ins Triggered . | . . . Exploration Rate (%) 42 | 7 55 66 Regions Visited 2 Branch Regions . Pre-discovered Areas . | . . . Known Exits Taken . | . . . Unknown Exits Taken 2 | 1 1 . Scrap Searched . | . . . Spaces Dug . | . . . Terrain Destroyed . | . . . Melee . | . . . Projectile . | . . . AOE . | . . . Terrain Rammed . | . . . Walls Destroyed . | . . . Machines Disabled . | . . . Actions | -11 -10 -9 --------- Run | Yrd Mat Mat Total 1392 | 106 512 774 Wait 1 | . 1 . Move 1179 | 84 450 645 Hop . | . . . Pick Up 43 | 9 7 27 Fast Attach 2 | . 2 . Attach 30 | 5 7 18 Detach 3 | . 1 2 Swap 5 | . 1 4 Drop 10 | . 3 7 Fire 119 | 8 40 71 Melee . | . . . Ram . | . . . Kick . | . . . Crush . | . . . Escape Stasis . | . . . Rewire . | . . . Trap . | . . . Miscellaneous . | . . . Route ------- -11/Scrapyard -10/Materials (discovered 2 exits: *Mat / [*Min]) -9/Materials (discovered 3 exits: [*Mat x2] / *Min) History --------- Turn | Location | Event 2 | -11/Scrapyard | Met Revision 17 84 | -11/Scrapyard | Discovered new exit (range 8) 125 | -11/Scrapyard | Entered Materials 313 | -10/Materials | Build established: Mutant 352 | -10/Materials | Discovered new exit (range 13) 438 | -10/Materials | Repaired Med. Laser 1067 | -10/Materials | Discovered new exit (range 9) 1286 | -10/Materials | Entered another Materials area 1286 | -9/Materials | Evolved 2 slots: Power x1, Utility x1 1436 | -9/Materials | Identified exit to Mines 1538 | -9/Materials | Discovered new exit (range 5) 1668 | -9/Materials | Core integrity fell below 50% 1696 | -9/Materials | Lost 5 parts (2p1n1u1w) 1816 | -9/Materials | Discovered new exit (range 3) 2498 | -9/Materials | Repaired Particle Cannon 2545 | -9/Materials | Repaired Adv. Treads 2668 | -9/Materials | Core integrity fell below 20% 2714 | -9/Materials | Destroyed by G-47 Trooper with Particle Gun Last Messages --------------- 02545_ Repair station completes Adv. Treads repairs. 02550_ Acquired Adv. Treads. 02552_ Connecting with Repair Station... 02578_ System corrupted: Heat flow error (+288). 02586_ Connecting with Terminal... >>Prototypes Downloading prototype IDs... Imp. Medium Laser Hvy. Particle Gun 02617_ WVFHOIB2M4 GQ 02667_ Lgt. Ion Engine destroyed. 02671_ K-01 Serf cleans the Fusion Modulator. 02692_ Machine disabled. 02707_ G-34 Mercenary destroyed. 02711_ Imp. Ion Engine destroyed. 02714_ Critical hit (Burn: +37). Map ----- +----------------------------------------------------+ | ?# ###+#############+###############"Y"####### | | ?######## #???????????^??????????????#"""#?????? | | ????????# ] #??????????????????????????#####?????? | | ????????# #????????????????????????????????????? | | ????????# #????????????????????????????????????? | | ????????# #????????????????????????????????????? | | ????????# ###??####????????????????????????????? | | ????????#= [## #?????########???????????????? | | ????????###### """ #?????# #???????????????? | | ?????????????# """ #?????# """ #???????????????? | | ?????????????# """ #?????# R" ###########?????? | | ?????????????? #?????# """ ## T #?????? | | ???????#???????? ####### ## """ #?????? | | ???????# ????###"## ##+###### """ #?????? | | ???????# ### = # """ #?????? | | ???????+ T # #?????? | | ???????# ### """ """ """ + """ #?????? | | ???????????????# """ """ """ # """ #?????? | | ???????????????# """ """ """ # ! """ #?????? | | ???????????????# # #????? | | ???????????????# ###########????? | | ???????????????# k*a #??????????????? | | ????????????#####+########Yg!######??????????????? | | ????????????# #?## = ####????????????????? | | ????????????# #?# """#????????????????? | | ????????????# #?#@ "#????????????????? | | ????????????# "" #?# !"#????????????????? | | ????????????#""" """ #?# > " #????????????????? | | ????????????#"R """ #?# !"#????????????????? | | ????????????#""" """ #?# "#????????????????? | | ????????????# ?#?# """#????????????????? | | ????????????# ############ ####???????####?????? | | ?????????????#????# ! # ########## #????? | | ??????????????????# + ^ #????? | | ??????????????????#""" # #????? | | ??????????????????#""" # ^ /^]/ #????? | | ??????????????????#""" ##### /] #????? | | ??????????????????# #???# ^]/ #??### | | ??????????????????########???# = | | ?????????????????????######### % ##??### | | ?????????????????????# ! + ! #?????? | | ?????????????????????# # = #?????? | | ?????????????????????# """ # %### #### ######## | | ?????????????????????#! """ # %=#?? #?# # # | | ?????????????????????# """ + #??? #?# # """ # | | ?????????????????????######### #????#?# # """ # | | ?????????????????????????????# #??????# # """ # | | ?????????????????????????????# #??????# # # | | ????????????????? ############ #??????# # # | | ??????????????? #??????# ##/##### | +----------------------------------------------------+ Best States ------------- Heat Dissipation 38 Energy Generation 17 Energy Capacity 290 Matter Stores 300 Matter Capacity 300 Sight Range 16 Terrain Scan Density 10 Armor Coverage 150 Evasion (%) 55 Targeting Accuracy 6 Recoil Reduction 2 Offensive Hacking 10 Item Schematics ----------------- None Robot Schematics ------------------ None Fabricated ------------ Nothing Alien Tech Used ----------------- None Achievements -------------- Dynamic Key Everything Is Under Control It's Just You Part-time Mechanic Challenges ------------ None Game ------ Seed SlugSeismicMaul Manual? 0 Play Time 00:32:33 Cumulative 1.3 hours Start 2024.03.31 @ 21:01:15 End 2024.03.31 @ 21:36:30 Sessions 1 Manual Loads 0 Difficulty Rogue Special Mode None Game No. 3 Rogue 3 Adventurer 0 Explorer 0 Win Type - Total 0 Types 0/0/0/0/0/0/0/0/0 Lore% 1 Gallery% 4 Achievement% 4 Wizard Run 0 Options --------- Layout 1 ASCII 0 Keyboard 0 Movement Mouse Keybinds 0 Fullscreen 1 Font 24/Smallcaps Map View 50x35 Zoom Use 0% Tactical HUD 1 Map Filters NONE Filters NONE Steam 1 RUN: 4b54d153-ba4e-4b8d-a3a2-5103a105b3af